bitfinex-derivatives/quotes_ETHF0:USTF0_20250627
["timestamp","ask_amount","ask_price","bid_price","bid_amount"]
[1751055959006,0.8251,2423.1,2423.0,1.62254868]
[1751055959213,4.1935,2423.1,2423.0,1.62254868]
[1751055960605,0.82514,2423.0,2422.9,1.62254868]
[1751055960816,4.6404838,2423.0,2422.9,1.62254868]
[1751055961017,6.641,2423.0,2422.9,1.62254868]
[1751055961515,6.641,2423.0,2422.9,2.59524868]
[1751055961707,6.641,2423.0,2422.9,3.42041868]
[1751055961907,6.641,2423.0,2422.9,1.79787]
[1751055962714,3.2078,2423.2,2423.0,0.82512]
[1751055962911,3.2078,2423.6,2423.1,4.8548438]
[1751055963114,0.82499,2423.5,2423.2,2.15676]
[1751055963319,7.46599,2423.5,2423.2,2.15676]
[1751055963518,7.46599,2423.5,2423.3,0.9727]
[1751055964919,0.825,2423.4,2423.3,0.9727]
[1751055965312,0.825,2423.4,2423.3,10.344659]
[1751055966314,7.46599,2423.5,2423.3,10.344659]
[1751055966721,0.825,2423.4,2423.3,10.344659]
[1751055967620,6.642,2423.4,2423.3,10.344659]
[1751055967921,7.467,2423.4,2423.3,10.344659]
[1751055971524,0.825,2423.4,2423.3,10.344659]
[1751055973223,4.6403438,2423.4,2423.3,10.344659]
[1751055974224,5.9977438,2423.4,2423.3,10.344659]
[1751055974418,5.9977438,2423.4,2423.3,9.371959]
[1751055974716,8.0707438,2423.4,2423.3,9.371959]
[1751055975822,13.0607438,2423.4,2423.3,9.371959]
[1751055977822,18.0607438,2423.4,2423.3,9.371959]
[1751055978226,0.82514,2423.0,2422.9,1.62254868]
[1751055978430,11.2724838,2423.0,2422.9,1.62254868]
[1751055978929,13.6789838,2423.0,2422.9,1.62254868]
[1751055981426,13.6789838,2423.0,2422.9,11.81088974]
[1751055982031,13.6789838,2423.0,2422.9,10.99795656]
[1751055982921,18.6689838,2423.0,2422.9,10.99795656]
[1751055983322,18.6689838,2423.0,2422.9,9.371959]
[1751055984217,18.6689838,2423.0,2422.9,10.99795656]
[1751055985426,26.6591876,2423.0,2422.8,1.62626595]
[1751055985626,2.4568,2422.9,2422.6,2.00178389]
[1751055985930,5.27093,2422.7,2422.2,4.32962504]
[1751055986126,4.6407138,2422.3,2422.2,4.32962504]
[1751055986325,11.2747138,2422.3,2422.2,4.32962504]
[1751055986522,11.2747138,2422.3,2422.2,1.0693]
[1751055986727,0.82544,2422.1,2422.0,3.2078]
[1751055986927,4.6407838,2422.1,2422.0,4.1954]
[1751055987431,4.6407838,2422.1,2422.0,3.2078]
[1751055987624,4.6407838,2422.1,2421.8,0.9876]
[1751055987625,0.82551,2421.9,2421.8,0.9876]
[1751055987825,11.2748538,2421.9,2421.8,0.9876]
[1751055988726,0.82556,2421.8,2421.6,3.2078]
[1751055989026,4.6409238,2421.7,2421.6,3.2078]
[1751055989730,6.0940238,2421.7,2421.6,3.2078]
[1751055991731,11.0840238,2421.7,2421.6,3.2078]
[1751055992130,7.26868,2421.7,2421.6,3.2078]
[1751055992331,0.82561,2421.6,2421.5,1.0855]
[1751055992622,8.85541,2421.6,2421.5,1.0855]
[1751055996331,2.22041,2421.6,2421.5,1.0855]
[1751055996531,8.85641,2421.6,2421.5,1.0855]
[1751055997440,5.81559,2421.7,2421.5,1.0855]
[1751055997641,6.636,2421.7,2421.6,7.8487538]
[1751055997840,6.636,2421.7,2421.6,5.49681]
[1751055999036,6.636,2421.7,2421.6,4.6712]
[1751055999237,6.636,2421.7,2421.6,3.2078]
[1751056001137,7.46158,2421.7,2421.6,3.2078]
[1751056003035,11.2769238,2421.7,2421.6,3.2078]
[1751056003734,0.82561,2421.6,2421.5,1.0855]
[1751056004535,2.28641,2421.6,2421.5,1.0855]
[1751056006744,12.45152,2421.7,2421.5,1.0855]
[1751056007244,5.81552,2421.7,2421.5,1.0855]
[1751056007432,6.627,2421.6,2421.5,1.0855]
[1751056008138,6.627,2421.6,2421.5,4.2933]
[1751056009344,7.45254,2421.6,2421.5,4.2933]
[1751056012949,7.45254,2421.6,2421.5,5.11888]
[1751056013849,7.45254,2421.6,2421.5,4.2933]
[1751056014143,7.45254,2421.6,2421.5,5.5091258]
[1751056014551,0.82547,2421.9,2421.7,0.82549]
[1751056014751,7.4525,2421.8,2421.6,6.89113628]
[1751056014950,7.4525,2421.8,2421.7,0.82551]
[1751056015150,7.4525,2421.8,2421.7,2.04497248]
[1751056015351,7.4525,2421.8,2421.7,1.21946248]
[1751056015740,6.627,2421.8,2421.7,1.21946248]
[1751056015945,6.627,2421.8,2421.7,2.04497248]
[1751056016244,7.45247,2421.8,2421.7,1.21946248]
[1751056017252,7.45247,2421.8,2421.6,7.29933568]
[1751056018048,6.627,2421.8,2421.7,0.82551]
[1751056018253,7.45247,2421.8,2421.7,1.62766188]
[1751056018846,6.627,2421.8,2421.7,2.45317188]
[1751056019347,6.627,2421.8,2421.7,2.19491]
[1751056019547,6.627,2421.8,2421.7,3.82585046]
[1751056020351,6.627,2421.8,2421.7,4.62576215]
[1751056020552,7.45247,2421.8,2421.7,3.80025215]
[1751056020757,7.45247,2421.8,2421.7,4.62576215]
[1751056020950,7.45247,2421.8,2421.7,2.19491]
[1751056021149,6.627,2421.8,2421.7,2.19491]
[1751056022051,0.82546,2421.9,2421.7,2.19491]
[1751056022253,0.82546,2421.9,2421.8,5.65419405]
[1751056022452,0.82546,2421.9,2421.8,6.47966405]
[1751056022649,7.45243,2422.0,2421.8,6.47966405]
[1751056022850,7.45243,2422.0,2421.9,2.7095985]
[1751056024853,11.2677738,2422.0,2421.9,1.6307985]
[1751056025157,0.82544,2421.9,2421.8,1.6307985]
[1751056025357,4.22864,2421.9,2421.8,1.6307985]
[1751056031961,10.85464,2421.9,2421.8,1.6307985]
[1751056032856,0.82547,2421.8,2421.7,2.44639405]
[1751056033955,4.6408138,2421.8,2421.7,2.44639405]
[1751056034262,6.1079138,2421.8,2421.7,2.44639405]
[1751056034455,2.29257,2421.8,2421.7,2.44639405]
[1751056040858,5.81539,2422.1,2421.7,2.44639405]
[1751056041060,0.82535,2422.2,2422.0,9.07213681]
[1751056041265,6.616,2422.4,2422.1,0.9982]
[1751056041457,6.616,2422.4,2422.2,1.22334232]
[1751056041458,0.8253,2422.3,2422.2,1.22334232]
[1751056041654,7.44129,2422.4,2422.2,5.86401612]
[1751056042063,7.44129,2422.4,2422.3,1.63145735]
[1751056042265,0.8253,2422.3,2422.2,1.63145735]
[1751056042764,7.44129,2422.4,2422.2,2.45678735]
[1751056042964,0.8253,2422.3,2422.2,1.63145735]
[1751056043567,8.84768,2422.4,2422.2,2.45678735]
[1751056044068,0.8253,2422.3,2422.2,1.63145735]
[1751056044862,8.84768,2422.4,2422.2,2.45677735]
[1751056045065,8.84768,2422.4,2422.3,1.22264987]
[1751056045567,8.84768,2422.4,2422.3,2.04794987]
[1751056045766,8.84768,2422.4,2422.3,1.22264987]
[1751056049272,6.616,2422.4,2422.3,1.22264987]
[1751056049575,7.44126,2422.4,2422.3,1.22264987]
[1751056049877,8.88036,2422.4,2422.3,1.22264987]
[1751056051669,5.81524,2422.5,2422.4,0.82526]
[1751056051867,47.543,2422.8,2422.5,0.82522]
[1751056052171,7.44016,2422.7,2422.5,1.86682]
[1751056052765,0.8252,2422.6,2422.5,1.0416]
[1751056053464,3.3526,2422.6,2422.5,1.0416]
[1751056053777,3.3526,2422.6,2422.5,2.26391514]
[1751056054276,3.3526,2422.6,2422.5,1.0416]
[1751056055478,7.44018,2422.7,2422.5,3.49826735]
[1751056055670,0.8252,2422.6,2422.5,3.49826735]
[1751056056977,0.82518,2422.7,2422.6,0.8252]
[1751056057179,6.615,2422.7,2422.6,2.04594562]
[1751056057380,7.44016,2422.7,2422.6,1.22074562]
[1751056059385,7.44016,2422.7,2422.6,2.04594562]
[1751056060180,0.82515,2422.8,2422.7,0.82516]
[1751056060388,6.614,2422.8,2422.7,2.04590562]
[1751056061776,7.43913,2422.8,2422.7,1.22074562]
[1751056061981,0.82516,2422.7,2422.6,4.42854562]
[1751056062196,2.21746,2422.7,2422.6,4.42854562]
[1751056063374,3.28066,2422.7,2422.6,1.22074562]
[1751056065875,3.28066,2422.7,2422.6,1.63145735]
[1751056066479,7.0960038,2422.7,2422.6,1.63145735]
[1751056066684,3.28066,2422.7,2422.6,1.63145735]
[1751056068687,1.3923,2422.7,2422.6,7.08693785]
[1751056069684,2.21746,2422.7,2422.6,6.26173785]
[1751056070691,2.21746,2422.7,2422.6,7.08694785]
[1751056070889,2.21746,2422.7,2422.6,3.27160405]
[1751056072193,2.21746,2422.7,2422.6,2.45389487]
[1751056072596,1.3923,2422.7,2422.6,0.82521]
[1751056072795,6.6,2422.8,2422.7,0.82518]
[1751056072995,7.42514,2422.8,2422.7,2.45387111]
[1751056073495,6.6,2422.8,2422.7,5.66167111]
[1751056073695,6.6,2422.8,2422.7,6.71137111]
[1751056074096,7.42514,2422.8,2422.7,5.88619111]
[1751056074293,8.78634,2422.8,2422.7,4.2575]
[1751056075098,2.18634,2422.8,2422.7,4.2575]
[1751056076197,2.18634,2422.8,2422.7,5.88619111]
[1751056076800,1.3612,2422.8,2422.7,6.71137111]
[1751056078098,2.18634,2422.8,2422.7,6.71137111]
[1751056078596,1.3612,2422.8,2422.7,6.71137111]
[1751056078794,1.3612,2422.8,2422.7,5.08268]
[1751056078994,1.3612,2422.8,2422.7,6.7123084]
[1751056079594,2.18634,2422.8,2422.7,6.7123084]
[1751056079793,1.3612,2422.8,2422.7,6.7123084]
[1751056080498,1.3612,2422.8,2422.7,5.08268]
[1751056080999,1.3612,2422.8,2422.7,14.454639]
[1751056082300,1.3612,2422.8,2422.7,16.90103305]
[1751056082600,2.18634,2422.8,2422.7,16.90103305]
[1751056084088,1.3612,2422.8,2422.7,16.90103305]
[1751056087400,4.99,2423.1,2422.9,0.82511]
[1751056087605,4.99,2423.1,2422.9,4.6404538]
[1751056087606,6.6,2423.0,2422.9,4.6404538]
[1751056088707,6.6,2423.0,2422.9,7.08956179]
[1751056090000,0.82507,2423.0,2422.9,3.27421799]
[1751056090201,0.82507,2423.0,2422.9,12.64617699]
[1751056090707,0.82507,2423.0,2422.9,10.197069]
[1751056091304,0.82506,2423.1,2422.9,10.197069]
[1751056091506,7.42506,2423.1,2423.0,2.44549506]
[1751056093003,0.82506,2423.1,2423.0,2.44549506]
[1751056093204,7.42506,2423.1,2423.0,2.44549506]
[1751056094410,0.82506,2423.1,2423.0,2.44549506]
[1751056095110,8.80046,2423.1,2423.0,2.44549506]
[1751056095310,8.80046,2423.1,2423.0,11.81745406]
[1751056095511,2.20046,2423.1,2423.0,11.81745406]
[1751056096311,6.0158038,2423.1,2423.0,11.00101514]
[1751056102609,7.1147038,2423.1,2423.0,11.00101514]
[1751056105612,12.1147038,2423.1,2423.0,9.371959]
[1751056105817,15.9300476,2423.1,2423.0,3.13951283]
[1751056106018,20.9200476,2423.1,2423.0,1.15556283]
[1751056106218,0.82507,2423.0,2422.9,1.62905614]
[1751056106412,29.34787,2423.0,2422.9,1.62905614]
[1751056106614,34.34787,2423.0,2422.9,1.62905614]
[1751056106813,0.82511,2422.9,2422.8,1.62905614]
[1751056107015,11.2274538,2422.9,2422.8,1.62905614]
[1751056107215,16.2274538,2422.9,2422.8,1.62905614]
[1751056107823,0.82514,2422.8,2422.7,1.62905614]
[1751056108214,5.82514,2422.8,2422.7,1.62905614]
[1751056108615,37.72614,2422.8,2422.7,1.62905614]
[1751056108815,39.13074,2422.8,2422.7,1.62905614]
[1751056109216,39.13074,2422.8,2422.7,11.00101514]
[1751056110430,34.13074,2422.8,2422.7,11.00101514]
[1751056111120,34.13074,2422.8,2422.7,9.371959]
[1751056117227,2.22974,2422.8,2422.7,9.371959]
[1751056117426,34.12774,2422.8,2422.7,9.371959]
[1751056117830,2.22974,2422.8,2422.7,9.371959]
[1751056118030,34.12674,2422.8,2422.7,9.371959]
[1751056122028,2.22974,2422.8,2422.7,9.371959]
[1751056122229,34.12574,2422.8,2422.7,9.371959]
[1751056123426,2.22974,2422.8,2422.7,9.371959]
[1751056123626,34.12374,2422.8,2422.7,9.371959]
[1751056124932,6.588,2422.8,2422.7,9.371959]
[1751056125338,6.588,2422.8,2422.7,13.940929]
[1751056125835,30.294,2423.1,2422.8,0.82512]
[1751056125836,5.81505,2423.1,2422.8,0.82512]
[1751056126134,6.574,2423.0,2422.7,13.115759]
[1751056126335,6.574,2423.0,2422.8,1.4444]
[1751056126838,7.39909,2423.0,2422.8,1.4444]
[1751056127135,0.8251,2422.9,2422.8,1.4444]
[1751056127328,7.39909,2423.0,2422.8,1.4444]
[1751056127925,0.8251,2422.9,2422.8,1.4444]
[1751056128338,0.82514,2422.8,2422.7,11.671359]
[1751056131737,0.82512,2422.9,2422.7,13.30041514]
[1751056131937,0.82512,2422.9,2422.8,1.3842]
[1751056132237,4.99,2423.0,2422.8,1.3842]
[1751056132436,6.573,2422.9,2422.8,2.20934]
[1751056133443,7.3981,2422.9,2422.8,3.83839614]
[1751056134043,6.573,2422.9,2422.8,7.65373994]
[1751056134246,0.82505,2423.1,2422.8,11.82859994]
[1751056134544,2.9826,2423.1,2423.0,7.8482138]
[1751056134740,2.9826,2423.1,2423.0,9.47726994]
[1751056135143,2.9826,2423.1,2423.0,18.84922894]
[1751056136038,2.9826,2423.1,2423.0,19.66566786]
[1751056136836,2.9826,2423.1,2423.0,17.2201728]
[1751056137137,3.80763,2423.1,2423.0,12.579759]
[1751056137441,3.80763,2423.1,2423.0,15.02151418]
[1751056137639,3.80763,2423.1,2423.0,16.37041418]
[1751056138036,3.80763,2423.1,2423.0,17.19548418]
[1751056138344,2.9826,2423.1,2423.0,17.19548418]
[1751056138548,3.80763,2423.1,2423.0,16.37041418]
[1751056138738,2.9826,2423.1,2423.0,17.19548418]
[1751056139544,2.9826,2423.1,2423.0,14.753729]
[1751056142054,3.80763,2423.1,2423.0,13.928659]
[1751056142237,2.9826,2423.1,2423.0,14.753729]
[1751056142543,2.9826,2423.1,2423.0,16.38015768]
[1751056144145,3.80763,2423.1,2423.0,16.38015768]
[1751056144648,2.9826,2423.1,2423.0,16.38015768]
[1751056144834,2.9826,2423.1,2423.0,15.03125768]
[1751056145033,3.80763,2423.1,2423.0,15.03125768]
[1751056145238,3.80763,2423.1,2423.0,16.37475768]
[1751056145742,2.9826,2423.1,2423.0,16.37475768]
[1751056147546,3.80763,2423.1,2423.0,16.37475768]
[1751056147848,2.9826,2423.1,2423.0,16.37475768]
[1751056149246,2.9826,2423.1,2423.0,14.748329]
[1751056150148,2.9826,2423.1,2423.0,17.19008418]
[1751056150847,5.81488,2423.6,2423.5,0.82489]
[1751056151050,0.82489,2423.5,2423.4,3.2078]
[1751056151649,0.82489,2423.5,2423.4,4.83372177]
[1751056152141,0.82489,2423.5,2423.4,4.03272]
[1751056152347,0.82489,2423.5,2423.4,4.83372177]
[1751056155446,0.82488,2423.6,2423.4,14.20568077]
[1751056155646,2.16878,2423.6,2423.4,14.20568077]
[1751056155848,1.1206,2423.5,2423.4,14.20568077]
[1751056156044,1.94549,2423.5,2423.4,14.20568077]
[1751056156646,1.94549,2423.5,2423.4,12.579759]
[1751056156945,1.94549,2423.5,2423.4,9.371959]
[1751056157147,1.94549,2423.5,2423.4,12.579759]
[1751056157347,1.1206,2423.5,2423.4,12.579759]
[1751056157954,1.1206,2423.5,2423.4,14.20568077]
[1751056158848,1.1206,2423.5,2423.4,15.03060077]
[1751056159049,2.16877,2423.6,2423.4,15.03060077]
[1751056159347,0.82489,2423.5,2423.4,14.20568077]
[1751056160553,0.82489,2423.5,2423.4,12.579759]
[1751056160750,2.26849,2423.5,2423.4,12.579759]
[1751056161451,2.26849,2423.5,2423.4,14.20568077]
[1751056162154,2.26849,2423.5,2423.4,12.579759]
[1751056162449,2.26849,2423.5,2423.4,14.20568077]
[1751056164850,3.46619,2423.5,2423.4,12.579759]
[1751056165040,3.46619,2423.5,2423.4,9.371959]
[1751056166155,3.46619,2423.5,2423.4,10.5930489]
[1751056172253,3.46619,2423.5,2423.4,9.371959]
[1751056172756,3.46619,2423.5,2423.4,10.59408529]
[1751056172958,3.46619,2423.5,2423.4,9.371959]
[1751056174556,0.82489,2423.5,2423.4,9.371959]
[1751056174756,2.25679,2423.5,2423.4,9.371959]
[1751056176763,0.82489,2423.5,2423.4,9.371959]
[1751056178567,0.82489,2423.5,2423.4,10.59436144]
[1751056178767,0.82489,2423.5,2423.4,9.371959]
[1751056179769,2.27589,2423.5,2423.4,9.371959]
[1751056180960,8.83389,2423.5,2423.4,9.371959]
[1751056182162,13.82389,2423.5,2423.4,9.371959]
[1751056183462,12.37289,2423.5,2423.4,10.59436144]
[1751056183967,11.548,2423.5,2423.4,10.59436144]
[1751056184167,11.548,2423.5,2423.4,12.579759]
[1751056184366,6.558,2423.5,2423.4,14.998759]
[1751056184571,6.558,2423.5,2423.4,16.62468077]
[1751056185168,7.38289,2423.5,2423.4,15.29918077]
[1751056185363,7.38289,2423.5,2423.4,10.99788077]
[1751056185572,7.38289,2423.5,2423.4,9.371959]
[1751056185873,13.76889,2423.5,2423.4,9.371959]
[1751056186677,12.37289,2423.5,2423.4,9.371959]
[1751056187171,13.76889,2423.5,2423.4,9.371959]
[1751056188472,18.76889,2423.5,2423.4,9.371959]
[1751056189167,5.81489,2423.5,2423.4,9.371959]
[1751056189371,5.81489,2423.5,2423.4,10.59417676]
[1751056189372,12.35889,2423.5,2423.4,10.59417676]
[1751056189670,12.35889,2423.5,2423.4,11.61967676]
[1751056192479,12.35889,2423.5,2423.4,14.14167676]
[1751056194474,12.35889,2423.5,2423.4,12.75137676]
[1751056196473,12.35889,2423.5,2423.4,11.529159]
[1751056197180,12.35889,2423.5,2423.4,12.75235758]
[1751056198279,12.35889,2423.5,2423.4,10.59515758]
[1751056201276,7.36889,2423.5,2423.4,9.371959]
[1751056201471,7.36889,2423.5,2423.4,10.570259]
[1751056201672,7.36889,2423.5,2423.4,12.19618077]
[1751056201873,7.36889,2423.5,2423.4,13.59418077]
[1751056203282,11.1842338,2423.5,2423.4,13.59418077]
[1751056203668,0.82489,2423.5,2423.4,13.59418077]
[1751056203875,7.36889,2423.5,2423.4,13.59418077]
[1751056205481,0.82489,2423.5,2423.4,13.59418077]
[1751056205675,7.36889,2423.5,2423.4,13.59418077]
[1751056208482,2.44756606,2424.3,2423.4,58.20828546]
[1751056208775,0.82461,2424.3,2424.2,4.83655756]
[1751056208979,0.82468,2424.1,2424.0,1.22173641]
[1751056209181,0.82472,2424.0,2423.9,3.2078]
[1751056209386,7.36872,2424.0,2423.9,3.2078]
[1751056210282,7.36872,2424.0,2423.9,12.579759]
[1751056211085,8.79992,2424.0,2423.9,12.579759]
[1751056211682,2.25592,2424.0,2423.9,12.579759]
[1751056211984,12.6152638,2424.0,2423.9,12.579759]
[1751056212481,16.4306076,2424.0,2423.9,12.579759]
[1751056212688,49.8684076,2424.0,2423.9,1.174159]
[1751056212886,53.5584076,2424.0,2423.9,1.174159]
[1751056213586,0.82485,2423.6,2423.5,0.04757741]
[1751056213785,2.06226,2423.5,2423.0,1.62875756]
[1751056213982,2.06226,2423.5,2422.8,4.2705]
[1751056213983,0.82509,2422.9,2422.8,4.2705]
[1751056214178,11.1844338,2422.9,2422.8,4.2705]
[1751056214579,7.36909,2422.9,2422.8,4.2705]
[1751056215084,11.1844138,2423.0,2422.8,4.2705]
[1751056215283,11.1844238,2423.0,2422.8,4.2705]
[1751056215484,0.82509,2422.9,2422.8,4.2705]
[1751056216388,0.82509,2422.9,2422.8,3.2078]
[1751056216689,7.19909,2422.9,2422.8,12.579759]
[1751056217576,7.53120026,2422.9,2422.8,12.579759]
[1751056217893,6.14720026,2422.9,2422.8,12.579759]
[1751056218583,7.53120026,2422.9,2422.8,12.579759]
[1751056218888,7.19909,2422.9,2422.8,12.579759]
[1751056219286,4.99,2422.9,2422.8,12.579759]
[1751056219482,11.523,2422.9,2422.8,12.579759]
[1751056219694,6.533,2422.9,2422.8,12.579759]
[1751056222190,7.3581,2422.9,2422.8,12.579759]
[1751056222989,6.533,2422.9,2422.8,12.579759]
[1751056224889,3.8153438,2423.0,2422.8,12.579759]
[1751056225089,1.7416,2423.1,2422.8,13.404899]
[1751056225090,6.534,2422.9,2422.8,13.404899]
[1751056225292,6.534,2422.9,2422.8,4.03294]
[1751056225792,6.534,2422.9,2422.8,3.2078]
[1751056226195,6.534,2422.9,2422.8,12.579759]
[1751056226396,6.534,2422.9,2422.8,13.404899]
[1751056226984,2.56664,2423.1,2422.8,13.404899]
[1751056227190,6.534,2423.0,2422.8,13.404899]
[1751056227596,10.3493438,2423.0,2422.8,12.579759]
[1751056227790,0.82511,2422.9,2422.8,12.579759]
[1751056231900,0.82508,2423.0,2422.8,12.579759]
[1751056232086,6.534,2422.9,2422.8,12.579759]
[1751056233592,1.7416,2423.1,2422.8,12.579759]
[1751056233796,6.534,2423.0,2422.8,17.2202328]
[1751056234302,1.7416,2423.1,2422.8,21.3951028]
[1751056234596,8.2756,2423.1,2423.0,4.6404138]
[1751056234994,1.7416,2423.1,2423.0,9.6404138]
[1751056235301,1.7416,2423.1,2423.0,19.0123728]
[1751056235700,6.534,2423.3,2423.1,0.82501]
[1751056235999,47.544,2423.7,2423.4,0.82491]
[1751056236194,48.36885,2423.7,2423.6,3.2078]
[1751056236402,0.82483,2423.8,2423.6,3.2078]
[1751056236599,7.35883,2423.7,2423.6,3.2078]
[1751056237099,6.534,2423.7,2423.6,5.36147]
[1751056237695,7.31938336,2424.3,2423.6,10.36147]
[1751056237896,0.82479,2423.9,2423.6,2.15367]
[1751056238198,6.534,2423.8,2423.6,2.15367]
[1751056238397,7.3588,2423.8,2423.7,3.2078]
[1751056240201,7.3588,2423.8,2423.7,12.579759]
[1751056241298,8.8241,2423.8,2423.7,12.579759]
[1751056243908,7.3588,2423.8,2423.7,12.579759]
[1751056244604,8.6862,2423.8,2423.7,12.579759]
[1751056247397,13.6846,2423.8,2423.7,12.579759]
[1751056248198,12.3572,2423.8,2423.7,12.579759]
[1751056248602,13.7617,2423.8,2423.7,12.579759]
[1751056253219,0.825,2423.2,2423.1,3.2078]
[1751056253412,0.825,2423.2,2422.8,2.44231425]
[1751056253413,17.05718336,2423.2,2422.8,4.8326364]
[1751056253718,8.14449336,2422.9,2422.8,3.2078]
[1751056253921,0.82514,2422.8,2422.7,1.6248364]
[1751056254116,2.29654,2422.8,2422.7,1.6248364]
[1751056254422,0.82517,2422.7,2422.6,1.6248364]
[1751056254608,0.82521,2422.6,2422.5,1.6248364]
[1751056254814,7.35521,2422.6,2422.5,1.6248364]
[1751056255014,0.82524,2422.5,2422.4,3.2078]
[1751056256220,0.82524,2422.5,2422.4,12.579759]
[1751056259126,2.21384,2422.5,2422.4,12.579759]
[1751056259927,2.21384,2422.5,2422.4,15.02207325]
[1751056260222,4.64274282,2422.5,2422.4,12.579759]
[1751056260423,6.03134282,2422.5,2422.4,12.579759]
[1751056261223,4.64274282,2422.5,2422.4,12.579759]
[1751056262026,0.82524,2422.5,2422.4,9.371959]
[1751056263135,12.35363,2422.6,2422.4,9.371959]
[1751056263425,15.56143,2422.6,2422.5,1.0097]
[1751056263632,0.82524,2422.5,2422.4,9.371959]
[1751056263924,3.26064,2422.5,2422.4,9.371959]
[1751056264725,1.82544,2422.5,2422.4,9.371959]
[1751056265833,3.25004,2422.5,2422.4,9.371959]
[1751056266531,1.82544,2422.5,2422.4,9.371959]
[1751056268228,3.20234,2422.5,2422.4,9.371959]
[1751056269130,8.20074,2422.5,2422.4,9.371959]
[1751056270333,6.82384,2422.5,2422.4,9.371959]
[1751056271530,8.18604,2422.5,2422.4,9.371959]
[1751056274035,6.82384,2422.5,2422.4,9.371959]
[1751056274736,8.25894,2422.5,2422.4,9.371959]
[1751056274930,11.46674,2422.5,2422.4,9.371959]
[1751056275124,59.02074,2422.5,2422.4,9.371959]
[1751056275330,64.02074,2422.5,2422.4,8.403619]
[1751056276131,89.24974,2422.5,2422.4,8.403619]
[1751056277435,84.24974,2422.5,2422.4,8.403619]
[1751056279641,89.24974,2422.5,2422.4,5.302699]
[1751056279829,89.24974,2422.5,2422.4,3.053909]
[1751056280029,89.24974,2422.5,2422.4,0.541589]
[1751056280232,89.24974,2422.5,2422.4,9e-06]
[1751056281339,0.82548,2421.8,2421.7,1.0211]
[1751056281542,7.35548,2421.8,2421.7,1.0211]
[1751056282640,0.82558,2421.5,2421.4,1.21708917]
[1751056282835,6.53,2421.5,2421.4,1.21708917]
[1751056283041,2.0631,2421.5,2421.4,7.64328917]
[1751056283241,2.0631,2421.5,2421.4,6.4262]
[1751056283744,2.0631,2421.5,2421.4,7.5167]
[1751056284339,2.88868,2421.5,2421.4,11.888659]
[1751056284540,2.0631,2421.5,2421.4,15.462459]
[1751056284746,7.35557,2421.6,2421.4,16.888659]
[1751056284943,7.35557,2421.6,2421.5,5.85708442]
[1751056285244,7.35557,2421.6,2421.5,20.22904342]
[1751056286241,7.35557,2421.6,2421.5,15.22904342]
[1751056286439,7.35557,2421.6,2421.5,12.579759]
[1751056286844,7.35557,2421.6,2421.5,13.80284342]
[1751056287045,7.35557,2421.6,2421.5,12.579759]
[1751056288045,7.35557,2421.6,2421.5,14.046159]
[1751056288844,7.35557,2421.6,2421.5,12.579759]
[1751056289238,7.35557,2421.6,2421.5,13.912759]
[1751056289547,6.53,2421.6,2421.5,13.912759]
[1751056289950,7.35555,2421.6,2421.5,12.579759]
[1751056290246,7.35555,2421.6,2421.5,13.912759]
[1751056291145,0.82555,2421.6,2421.5,13.912759]
[1751056291343,7.35655,2421.6,2421.5,13.912759]
[1751056292149,7.35655,2421.6,2421.5,12.579759]
[1751056292349,7.35655,2421.6,2421.5,14.045859]
[1751056293242,7.35655,2421.6,2421.5,12.579759]
[1751056293447,7.35655,2421.6,2421.5,14.045859]
[1751056294955,6.531,2421.6,2421.5,14.045859]
[1751056295252,7.35655,2421.6,2421.5,14.045859]
[1751056296052,0.82555,2421.6,2421.5,14.045859]
[1751056296251,7.35655,2421.6,2421.5,14.045859]
[1751056298146,7.35655,2421.6,2421.5,15.26894342]
[1751056299752,7.35655,2421.6,2421.5,14.045859]
[1751056301351,7.35655,2421.6,2421.5,15.67122886]
[1751056302055,7.35655,2421.6,2421.5,12.46342886]
[1751056302352,7.35655,2421.6,2421.5,15.67122886]
[1751056302552,7.35655,2421.6,2421.5,16.49680886]
[1751056302948,7.35655,2421.6,2421.5,15.03070886]
[1751056303250,0.82555,2421.6,2421.5,15.03070886]
[1751056303455,7.35654,2421.7,2421.5,16.38000886]
[1751056303657,7.35654,2421.7,2421.6,1.3493]
[1751056303950,4.9984,2422.1,2421.6,1.3493]
[1751056304157,4.9984,2422.1,2422.0,5.25764105]
[1751056304755,0.82537,2422.2,2422.1,0.82538]
[1751056304960,0.82537,2422.2,2422.1,3.46797717]
[1751056305142,0.82526,2422.5,2422.1,21.23490584]
[1751056305348,6.531,2422.4,2422.3,5.8677154]
[1751056305658,6.531,2422.4,2422.3,7.2863154]
[1751056306054,0.82526,2422.5,2422.3,7.2863154]
[1751056306255,0.82526,2422.5,2422.4,1.0723]
[1751056306456,7.35626,2422.5,2422.4,1.0723]
[1751056307356,6.531,2422.5,2422.4,1.0723]
[1751056307547,7.35624,2422.5,2422.4,1.0723]
[1751056308556,7.35624,2422.5,2422.4,4.2801]
[1751056309450,6.531,2422.5,2422.4,4.2801]
[1751056310148,6.531,2422.5,2422.4,13.652059]
[1751056310750,7.35624,2422.5,2422.4,13.652059]
[1751056311260,6.531,2422.5,2422.4,13.652059]
[1751056312157,4.9984,2422.7,2422.5,0.82523]
[1751056312356,7.35121,2422.6,2422.5,1.0583]
[1751056312553,11.17018698,2422.6,2422.5,1.0583]
[1751056312753,11.17018698,2422.6,2422.4,13.652059]
[1751056312754,0.82524,2422.5,2422.4,13.652059]
[1751056313354,7.35122,2422.6,2422.4,13.652059]
[1751056313962,7.35122,2422.6,2422.4,14.87550742]
[1751056314457,0.82524,2422.5,2422.4,12.579759]
[1751056314663,3.26104,2422.5,2422.4,12.579759]
[1751056316264,1.81244,2422.5,2422.4,12.579759]
[1751056316657,3.17574,2422.5,2422.4,12.579759]
[1751056317662,1.81244,2422.5,2422.4,12.579759]